bitfinex/quotes_BTCUSD_20250522
["timestamp","ask_amount","ask_price","bid_price","bid_amount"]
[1747887513187,0.25187923,111300.0,111290.0,0.80053244]
[1747887513394,0.25187923,111300.0,111290.0,0.80053252]
[1747887514169,0.22117923,111300.0,111290.0,0.80951789]
[1747887514404,0.22117923,111300.0,111290.0,0.98922855]
[1747887514531,0.02695239,111300.0,111290.0,1.17749013]
[1747887514733,0.01796807,111300.0,111290.0,1.17749013]
[1747887514932,0.03593655,111300.0,111290.0,1.58569013]
[1747887515172,0.02695223,111300.0,111290.0,1.58569013]
[1747887515373,0.01796807,111300.0,111290.0,1.67521164]
[1747887515787,0.00898399,111300.0,111290.0,1.67521164]
[1747887515995,0.01720736,111310.0,111300.0,0.54664795]
[1747887516199,0.2238365,111310.0,111300.0,0.6983432]
[1747887516403,0.25503714,111310.0,111300.0,0.70732784]
[1747887516596,0.25503714,111310.0,111300.0,0.98552834]
[1747887516808,0.25503714,111310.0,111300.0,1.0034969]
[1747887516809,0.01720744,111310.0,111300.0,1.0034969]
[1747887517306,0.00822409,111310.0,111300.0,1.00349698]
[1747887517513,0.02619087,111310.0,111300.0,1.00349642]
[1747887517831,0.03517454,111310.0,111300.0,1.00349642]
[1747887518240,0.09777454,111310.0,111300.0,1.27297642]
[1747887518663,0.10675829,111310.0,111300.0,1.26599226]
[1747887518862,0.10675829,111310.0,111300.0,1.27663919]
[1747887519061,0.10675829,111310.0,111300.0,1.27663927]
[1747887519289,0.26846988,111310.0,111300.0,0.71167249]
[1747887519484,0.26846988,111310.0,111300.0,0.97148541]
[1747887519930,0.20586988,111310.0,111300.0,0.97148541]
[1747887520137,0.20586988,111310.0,111300.0,0.70200541]
[1747887520331,0.27006988,111310.0,111300.0,0.97348541]
[1747887520579,0.27006988,111310.0,111300.0,1.06300692]
[1747887520832,0.26108621,111310.0,111300.0,0.96283848]
[1747887521153,0.26108621,111310.0,111300.0,0.004]
[1747887521354,0.25210246,111310.0,111300.0,0.27348]
[1747887521533,0.25210246,111310.0,111300.0,0.004]
[1747887521748,0.25210246,111310.0,111300.0,0.27348]
[1747887522156,0.22868621,111310.0,111300.0,1.11957633]
[1747887522527,0.24665355,111310.0,111300.0,1.20912181]
[1747887523460,0.27905355,111310.0,111300.0,1.20912181]
[1747887523586,0.27905355,111310.0,111300.0,0.94930889]
[1747887523789,0.27905355,111310.0,111300.0,1.61732181]
[1747887524375,0.27905355,111310.0,111300.0,1.62630637]
[1747887525123,0.27905355,111310.0,111300.0,1.15916266]
[1747887525343,0.27007004,111310.0,111300.0,1.16882974]
[1747887525538,0.27007004,111310.0,111300.0,1.17781438]
[1747887525743,0.27007004,111310.0,111300.0,1.17781446]
[1747887525895,0.27007004,111310.0,111300.0,1.16882974]
[1747887526101,0.27007004,111310.0,111300.0,0.89934974]
[1747887526294,0.26108629,111310.0,111300.0,1.11122556]
[1747887526719,0.26108629,111310.0,111300.0,1.30888911]
[1747887526994,0.26108629,111310.0,111300.0,1.29990471]
[1747887527234,0.26108629,111310.0,111300.0,1.11122556]
[1747887528217,0.26108629,111310.0,111300.0,0.77122556]
[1747887528460,0.26108629,111310.0,111300.0,0.84941281]
[1747887528699,0.25210246,111310.0,111300.0,0.84941281]
[1747887529165,0.19766363,111300.0,111290.0,0.87555601]
[1747887529396,0.26784787,111300.0,111290.0,1.25255239]
[1747887530021,0.26784787,111300.0,111290.0,0.96510173]
[1747887530229,0.25886363,111300.0,111290.0,0.76720151]
[1747887530437,0.25886363,111300.0,111290.0,0.68368]
[1747887530861,0.25886363,111300.0,111290.0,0.69266553]
[1747887531062,0.25886363,111300.0,111290.0,0.4142]
[1747887531273,0.25886363,111300.0,111290.0,0.69266545]
[1747887531480,0.25886363,111300.0,111290.0,0.68368]
[1747887531685,0.25886363,111300.0,111290.0,0.69266553]
[1747887532150,0.25886363,111300.0,111290.0,0.68368]
[1747887532358,0.24987915,111300.0,111290.0,0.68368]
[1747887532561,0.24987915,111300.0,111290.0,0.69266545]
[1747887532840,0.21907891,111300.0,111290.0,0.7329744]
[1747887533146,0.21563227,111300.0,111290.0,0.72398911]
[1747887533345,0.21563227,111300.0,111290.0,0.7329744]
[1747887533923,0.21563227,111300.0,111290.0,0.46417619]
[1747887534128,0.02695312,111300.0,111290.0,0.49113189]
[1747887534336,0.21563227,111300.0,111290.0,0.49113189]
[1747887534909,0.22461699,111300.0,111290.0,0.49113189]
[1747887535740,0.02695312,111300.0,111290.0,0.5806534]
[1747887535914,0.02695312,111300.0,111290.0,0.92963836]
[1747887536476,0.03593776,111300.0,111290.0,0.92963836]
[1747887536873,0.02695312,111300.0,111290.0,0.92963836]
[1747887537786,0.01796856,111300.0,111290.0,0.92963836]
[1747887538028,0.02619135,111310.0,111300.0,0.20664771]
[1747887538288,0.22383634,111310.0,111300.0,0.54389172]
[1747887538472,0.28643634,111310.0,111300.0,0.18867915]
[1747887538692,0.27745315,111310.0,111300.0,0.18867915]
[1747887538914,0.19766371,111300.0,111290.0,0.70502556]
[1747887539132,0.20664803,111300.0,111290.0,0.911692]
[1747887539418,0.26026371,111300.0,111290.0,0.006]
[1747887539655,0.33206088,111300.0,111290.0,0.003]
[1747887540508,0.25209603,111290.0,111280.0,0.28188236]
[1747887542067,0.25209603,111290.0,111280.0,0.28388236]
[1747887543493,0.25209603,111290.0,111280.0,0.01440236]
[1747887543698,0.25209603,111290.0,111280.0,0.28592236]
[1747887544129,0.25209603,111290.0,111280.0,0.01640236]
[1747887544330,0.34164159,111290.0,111280.0,0.01640236]
[1747887545155,0.34164159,111290.0,111280.0,0.01440236]
[1747887545359,0.60145451,111290.0,111280.0,0.01240236]
[1747887545580,0.34164159,111290.0,111280.0,0.01340236]
[1747887545789,0.34364159,111290.0,111280.0,0.01340236]
[1747887546905,0.34364159,111290.0,111280.0,0.01240236]
[1747887547374,0.60545451,111290.0,111280.0,0.01240236]
[1747887548208,1.37409451,111290.0,111280.0,0.01240236]
[1747887549270,1.38863536,111290.0,111280.0,0.01240236]
[1747887549469,1.38663536,111290.0,111280.0,0.01240236]
[1747887550057,1.47415687,111290.0,111280.0,0.01240236]
[1747887550268,1.48715687,111290.0,111280.0,0.01240236]
[1747887550857,1.48415687,111290.0,111280.0,0.01240236]
[1747887551059,1.49478087,111290.0,111280.0,0.01240236]
[1747887551232,1.49978087,111290.0,111280.0,0.01240236]
[1747887551676,0.19773446,111260.0,111250.0,0.00096]
[1747887551891,0.35238002,111260.0,111250.0,0.00096]
[1747887552904,0.23093446,111260.0,111250.0,0.26077292]
[1747887553124,0.01797485,111260.0,111250.0,0.50932416]
[1747887553346,0.02696264,111260.0,111250.0,0.54122416]
[1747887553557,0.18874367,111270.0,111260.0,0.19773478]
[1747887553734,0.20671763,111270.0,111260.0,0.26880087]
[1747887553967,0.18874375,111270.0,111260.0,0.52937292]
[1747887554372,0.18874375,111270.0,111260.0,0.26956]
[1747887554992,0.21914375,111270.0,111260.0,0.26956]
[1747887555320,0.18874375,111270.0,111260.0,0.26956]
[1747887556197,0.18874375,111270.0,111260.0,0.61889443]
[1747887556350,0.17975661,111270.0,111260.0,0.61889443]
[1747887557062,0.17975661,111270.0,111260.0,0.52937292]
[1747887557312,0.26043438,111260.0,111250.0,0.34854087]
[1747887557521,0.22084699,111260.0,111250.0,0.34854087]
[1747887558206,0.22084699,111260.0,111250.0,0.00854087]
[1747887558420,0.20672265,111260.0,111250.0,0.45711767]
[1747887558806,0.19773494,111260.0,111250.0,0.27135379]
[1747887559597,0.19773494,111260.0,111250.0,0.45112907]
[1747887560212,0.18874707,111260.0,111250.0,0.27135379]
[1747887562300,0.25364707,111260.0,111250.0,0.28114087]
[1747887562855,0.18874707,111260.0,111250.0,0.28114087]
[1747887563062,0.01797526,111260.0,111250.0,1.19406438]
[1747887563292,0.21570931,111260.0,111250.0,1.10940619]
[1747887563532,0.20672209,111260.0,111250.0,1.07870627]
[1747887563685,0.20995912,111260.0,111250.0,0.62114087]
[1747887564121,0.20995912,111260.0,111250.0,0.54095379]
[1747887564344,0.24055912,111260.0,111250.0,0.28114087]
[1747887568342,0.24055912,111260.0,111250.0,0.54095379]
[1747887568926,0.20995912,111260.0,111250.0,0.54095379]
[1747887569687,0.17975912,111260.0,111250.0,0.61572488]
[1747887569931,0.00898739,111260.0,111250.0,1.21772805]
[1747887570109,0.01797356,111270.0,111260.0,0.1977347]
[1747887570320,0.20670358,111270.0,111260.0,0.25981292]
[1747887570542,0.20670358,111270.0,111260.0,0.26880087]
[1747887570974,0.20670358,111270.0,111260.0,0.45754786]
[1747887571200,0.20670358,111270.0,111260.0,0.26880087]
[1747887571366,0.19771692,111270.0,111260.0,0.46653549]
[1747887571565,0.19771692,111270.0,111260.0,0.83673549]
[1747887571767,0.19771692,111270.0,111260.0,0.82774786]
[1747887571989,0.19771692,111270.0,111260.0,0.80653565]
[1747887572190,0.19771692,111270.0,111260.0,0.59981292]
[1747887572430,0.18873002,111270.0,111260.0,0.60880087]
[1747887572635,0.02696046,111270.0,111260.0,0.99459011]
[1747887572974,0.02696046,111270.0,111260.0,0.9351686]
[1747887573153,0.20670342,111270.0,111260.0,0.92618113]
[1747887573353,0.20670342,111270.0,111260.0,0.89608113]
[1747887573575,0.20670342,111270.0,111260.0,0.90506876]
[1747887573789,0.20670342,111270.0,111260.0,0.89608113]
[1747887574165,0.20670342,111270.0,111260.0,0.89608121]
[1747887574318,0.20670342,111270.0,111260.0,0.90506892]
[1747887574729,0.21569056,111270.0,111260.0,0.91405647]
[1747887574921,0.2118531,111280.0,111270.0,0.17974296]
[1747887574922,0.1797531,111280.0,111270.0,0.17974296]
[1747887575128,0.1797531,111280.0,111270.0,0.53165944]
[1747887575349,0.1797531,111280.0,111270.0,0.52941292]
[1747887576185,0.00898593,111280.0,111270.0,1.1980619]
[1747887576355,0.02895771,111280.0,111270.0,1.20704856]
[1747887576533,0.03794388,111280.0,111270.0,1.29346381]
[1747887576732,0.03794388,111280.0,111270.0,1.28447723]
[1747887577159,0.21767069,111280.0,111270.0,1.29346381]
[1747887577582,0.21867069,111280.0,111270.0,1.29346381]
[1747887577994,0.21867069,111280.0,111270.0,1.25207723]
[1747887578176,0.02995771,111280.0,111270.0,1.26106381]
[1747887578373,0.02895771,111280.0,111270.0,1.26106381]
[1747887578572,0.03794388,111280.0,111270.0,1.26106381]
[1747887578805,0.03794388,111280.0,111270.0,1.26306381]
[1747887578997,0.03794388,111280.0,111270.0,1.26106381]
[1747887579196,0.03594388,111280.0,111270.0,1.26106381]
[1747887579403,0.03594388,111280.0,111270.0,1.26206381]
[1747887579943,0.22465752,111280.0,111270.0,1.24309057]
[1747887580246,0.21567159,111280.0,111270.0,1.24409065]
[1747887580652,0.21567159,111280.0,111270.0,1.24609065]
[1747887581362,0.20668558,111280.0,111270.0,1.05736087]
[1747887581791,0.21901315,111280.0,111270.0,1.05736087]
[1747887581991,0.24981315,111280.0,111270.0,0.69235848]
[1747887582123,0.24981315,111280.0,111270.0,0.96191848]
[1747887584198,0.24082681,111280.0,111270.0,0.96191848]
[1747887585508,0.21002681,111280.0,111270.0,0.96191848]
[1747887586481,0.17972681,111280.0,111270.0,0.96191848]
[1747887586902,0.17972681,111280.0,111270.0,0.97090562]
[1747887587315,0.17972681,111280.0,111270.0,0.96191848]
[1747887587741,0.17972681,111280.0,111270.0,0.97090562]
[1747887587939,0.19769908,111280.0,111270.0,1.15963564]
[1747887588494,0.19769908,111280.0,111270.0,0.97090562]
[1747887588717,0.22959908,111280.0,111270.0,0.97090562]
[1747887588987,0.22959908,111280.0,111270.0,0.96191848]
[1747887589160,0.22959908,111280.0,111270.0,0.97090562]
[1747887589360,0.22959908,111280.0,111270.0,0.96191848]
[1747887589583,0.22959908,111280.0,111270.0,0.97090562]
[1747887589727,0.22959908,111280.0,111270.0,0.96191848]
[1747887590145,0.22959908,111280.0,111270.0,1.06042713]
[1747887590339,0.22959908,111280.0,111270.0,1.05143999]
[1747887591101,0.22959908,111280.0,111270.0,1.15963548]
[1747887591344,0.1888348,111290.0,111280.0,0.51972681]
[1747887591584,0.01810722,111290.0,111280.0,1.15585641]
[1747887591795,0.00013722,111290.0,111280.0,1.22904218]
[1747887591997,0.02619103,111310.0,111300.0,0.20664771]
[1747887592198,0.01720744,111310.0,111300.0,1.66053765]
[1747887592412,0.01771735,111310.0,111300.0,1.66053765]
[1747887592833,0.03568437,111310.0,111300.0,1.66053765]
[1747887593378,0.18813882,111340.0,111300.0,3.13603057]
[1747887593588,0.00853369,111340.0,111330.0,0.80640495]
[1747887593802,0.05140273,111360.0,111350.0,0.20655516]
[1747887594011,0.07834125,111360.0,111350.0,1.08502066]
[1747887594220,0.05140273,111360.0,111350.0,1.17456622]
[1747887594392,0.04242358,111360.0,111350.0,1.18229592]
[1747887595050,0.04542358,111360.0,111350.0,2.08538684]
[1747887595277,0.03467087,111360.0,111350.0,1.87155771]
[1747887595486,0.03167087,111360.0,111350.0,2.13137063]
[1747887595691,0.03367087,111360.0,111350.0,1.22827971]
[1747887595898,0.03367087,111360.0,111350.0,2.31784663]
[1747887596102,0.03167087,111360.0,111350.0,2.31784663]
[1747887596287,0.03267087,111360.0,111350.0,2.33238748]
[1747887596495,0.04095718,111380.0,111370.0,0.20651782]
[1747887596693,0.0589125,111380.0,111370.0,1.28754775]
[1747887596936,0.05891234,111380.0,111370.0,1.30123421]
[1747887597145,0.04993472,111380.0,111370.0,1.30123421]
[1747887597347,0.04095718,111380.0,111370.0,1.30123421]
[1747887597539,0.04095718,111380.0,111370.0,1.2922557]
[1747887597671,0.04095718,111380.0,111370.0,1.30123421]
[1747887598470,0.12992649,111400.0,111390.0,0.02693166]
[1747887598722,0.19748547,111400.0,111390.0,1.2149919]
[1747887598949,0.21543838,111400.0,111390.0,1.21274777]
[1747887599348,0.20646237,111400.0,111390.0,1.21274785]
[1747887599556,0.18854661,111410.0,111400.0,0.19748628]
[1747887599761,0.01810424,111410.0,111400.0,0.88887553]
[1747887599976,0.00015294,111410.0,111400.0,1.62028633]
[1747887600180,0.00912806,111410.0,111400.0,1.62028633]
[1747887600424,0.00015294,111410.0,111400.0,1.62028633]
[1747887600634,0.00015294,111410.0,111400.0,2.00820633]
[1747887600835,0.00015294,111410.0,111400.0,2.63318533]
[1747887601038,0.00015294,111410.0,111400.0,2.63649926]
[1747887601319,0.04064987,111440.0,111430.0,0.20640663]
[1747887601548,0.24703821,111440.0,111430.0,1.01530722]
[1747887601751,0.29090165,111440.0,111430.0,0.692]
[1747887601958,0.18845895,111430.0,111420.0,0.26878788]
[1747887602163,0.19743295,111430.0,111420.0,0.68935848]
[1747887602368,0.20413295,111430.0,111420.0,1.02229292]
[1747887602543,0.24470703,111430.0,111420.0,1.29169292]
[1747887602769,0.24470703,111430.0,111420.0,1.37714816]
[1747887603310,0.23470703,111430.0,111420.0,1.37714816]
[1747887603499,0.23470703,111430.0,111420.0,1.3871232]
[1747887603626,0.22573303,111430.0,111420.0,1.37814816]
[1747887604140,0.19413303,111430.0,111420.0,0.6952432]
[1747887604340,0.19413303,111430.0,111420.0,1.37806816]
[1747887605179,0.19413303,111430.0,111420.0,1.37906816]
[1747887605992,0.19413303,111430.0,111420.0,1.40929532]
[1747887606200,0.19413303,111430.0,111420.0,1.37906816]
[1747887606601,0.19413303,111430.0,111420.0,1.3880432]
[1747887607206,0.00050942,111440.0,111430.0,0.55538087]
[1747887607427,0.00050942,111440.0,111430.0,0.96118463]
[1747887607665,0.00050942,111440.0,111430.0,1.00554671]
[1747887607896,0.00050942,111440.0,111430.0,0.98243675]
[1747887608115,0.00050942,111440.0,111430.0,0.97469147]
[1747887608497,0.00050942,111440.0,111430.0,1.26760439]
[1747887608896,0.00150942,111440.0,111430.0,1.28214524]
[1747887609117,0.01794276,111460.0,111450.0,0.53738677]
[1747887609451,0.23053248,111460.0,111450.0,1.41403471]
[1747887609815,0.00015276,111460.0,111450.0,1.61143239]
[1747887610012,0.01809552,111460.0,111450.0,1.62937685]
[1747887610199,0.00015276,111460.0,111450.0,1.63834891]
[1747887610614,0.00912386,111460.0,111450.0,1.63834891]
[1747887611220,0.20650334,111460.0,111450.0,1.41395471]
[1747887611401,0.20650334,111460.0,111450.0,1.59340737]
[1747887611605,0.20650334,111460.0,111450.0,1.61135239]
[1747887611815,0.19753176,111460.0,111450.0,1.6213247]
[1747887612020,0.19753168,111460.0,111450.0,1.6223247]
[1747887612417,0.00015276,111460.0,111450.0,1.63129676]
[1747887612666,0.01801027,111460.0,111450.0,1.63129676]
[1747887612875,0.20641825,111460.0,111450.0,0.67099178]
[1747887613079,0.19744707,111460.0,111450.0,1.60434]
[1747887613224,0.19744707,111460.0,111450.0,1.63125676]
[1747887613225,6.791e-05,111460.0,111450.0,1.63125676]
[1747887613634,6.791e-05,111460.0,111450.0,2.04949676]
[1747887614259,6.791e-05,111460.0,111450.0,3.36447576]
[1747887614762,6.791e-05,111460.0,111450.0,3.20930976]
[1747887614962,6.791e-05,111460.0,111450.0,2.87957876]
[1747887615178,6.791e-05,111460.0,111450.0,2.89411961]
[1747887615425,6.791e-05,111460.0,111450.0,2.92441961]
[1747887616255,0.18841893,111490.0,111480.0,0.00897005]
[1747887616466,0.21532612,111490.0,111480.0,1.24483107]
[1747887616651,0.2153262,111490.0,111480.0,1.25155882]
[1747887616902,0.00897118,111460.0,111450.0,1.01125403]
[1747887617127,0.20633281,111470.0,111450.0,2.18522542]
[1747887617341,0.1973613,111470.0,111460.0,0.54898105]
[1747887617545,0.20633208,111470.0,111460.0,0.53776686]
[1747887617751,0.18839536,111480.0,111470.0,0.52839149]
[1747887617924,0.20633506,111480.0,111470.0,0.6983295]
[1747887618114,0.23016525,111480.0,111470.0,0.68935848]
[1747887618350,0.17942047,111470.0,111450.0,0.03307623]
[1747887618539,0.18842513,111450.0,111440.0,0.26912]
[1747887618743,0.25434204,111440.0,111430.0,0.01350684]
[1747887619101,0.26331523,111440.0,111430.0,0.72651863]
[1747887619286,0.26331523,111440.0,111430.0,0.81606419]
[1747887619287,0.01794582,111440.0,111430.0,0.81606419]
[1747887619441,0.03589228,111440.0,111430.0,0.91455954]
[1747887619668,0.23826975,111450.0,111440.0,0.19741515]
[1747887619874,0.01794574,111440.0,111430.0,0.9857723]
[1747887620078,0.03589156,111440.0,111430.0,1.25455938]
[1747887620273,0.22433424,111440.0,111430.0,1.2455857]
[1747887620493,0.22433424,111440.0,111430.0,1.26775619]
[1747887620702,0.22433488,111440.0,111430.0,1.26775619]
[1747887620898,0.25733488,111440.0,111430.0,1.26775619]
[1747887621104,0.25733488,111440.0,111430.0,1.68995619]
[1747887621797,0.01794606,111440.0,111430.0,1.69992987]
[1747887622045,0.02691933,111440.0,111430.0,1.69992987]
[1747887622261,0.01794606,111440.0,111430.0,1.69992987]
[1747887622478,0.02691933,111440.0,111430.0,1.69992987]
[1747887622700,0.02691933,111440.0,111430.0,1.69700987]
[1747887623653,0.03589268,111440.0,111430.0,1.69700987]
[1747887623837,0.04486611,111440.0,111430.0,1.68803619]
[1747887624281,0.01794606,111440.0,111430.0,1.69700987]
[1747887624497,0.02691869,111440.0,111430.0,1.69700987]
[1747887624736,0.00897062,111470.0,111460.0,0.01794324]
[1747887624965,0.00897062,111470.0,111450.0,0.75928]
[1747887624966,0.1973798,111460.0,111450.0,0.75928]
[1747887625208,0.2584798,111460.0,111450.0,1.11794556]
[1747887625408,0.2584798,111460.0,111450.0,0.34]
[1747887625653,0.19741507,111440.0,111430.0,0.862151]
[1747887625883,0.0506463,111440.0,111430.0,1.6064886]
[1747887626097,0.06796405,111440.0,111430.0,1.59751492]
[1747887626320,0.06796405,111440.0,111430.0,1.59951492]
[1747887626579,0.26945979,111440.0,111430.0,0.01334949]
[1747887626802,0.26945979,111440.0,111430.0,0.00015276]
[1747887627029,0.26945979,111440.0,111430.0,0.00115276]
[1747887627444,0.26945979,111440.0,111430.0,0.00315276]
[1747887627861,0.26945979,111440.0,111430.0,0.00115276]
[1747887628068,0.26945979,111440.0,111430.0,0.00015276]
[1747887628435,0.26945979,111440.0,111430.0,0.00215276]
[1747887629069,0.26945979,111440.0,111430.0,0.00015276]
[1747887629261,0.26945979,111440.0,111430.0,0.00115276]
[1747887630586,0.27045979,111440.0,111430.0,0.00115276]
[1747887631143,0.27045979,111440.0,111430.0,0.00015276]
[1747887634432,0.61981827,111440.0,111430.0,0.00015276]
[1747887636010,1.30833827,111440.0,111430.0,0.00015276]
[1747887636417,1.04852535,111440.0,111430.0,0.00015276]
[1747887637363,1.30833827,111440.0,111430.0,0.00015276]
[1747887638338,1.04852535,111440.0,111430.0,0.00015276]
[1747887642164,1.04856535,111440.0,111430.0,0.00015276]
[1747887642803,0.36000535,111440.0,111430.0,0.00015276]
[1747887643022,0.27045979,111440.0,111430.0,0.00015276]
[1747887643245,0.02729062,111440.0,111430.0,0.46637231]
[1747887643447,0.21573274,111440.0,111430.0,0.53794622]
[1747887643578,0.21573274,111440.0,111430.0,0.55589414]
[1747887643782,0.03626397,111440.0,111430.0,0.5558943]
[1747887643984,0.22470617,111440.0,111430.0,0.54692014]
[1747887644194,0.20675987,111440.0,111430.0,0.00015276]
[1747887644397,0.19778652,111440.0,111430.0,0.009127]
[1747887644803,0.19778652,111440.0,111430.0,0.01810116]
[1747887645046,0.19778652,111440.0,111430.0,0.20656011]
[1747887645195,0.19778652,111440.0,111430.0,0.46637303]
[1747887645395,0.19778652,111440.0,111430.0,0.55589454]
[1747887645909,0.19778652,111440.0,111430.0,0.45739895]
[1747887647202,0.00934432,111440.0,111430.0,0.79739895]
[1747887647384,0.03689228,111440.0,111430.0,0.81534655]
[1747887647730,0.21636105,111440.0,111430.0,0.80637287]
[1747887647929,0.20738826,111440.0,111430.0,0.88692046]
[1747887648168,0.21944212,111440.0,111430.0,0.34015276]
[1747887648386,0.24994212,111440.0,111430.0,0.34015276]
[1747887648758,0.24994212,111440.0,111430.0,0.34115276]
[1747887649697,0.25832082,111440.0,111430.0,0.34115276]
[1747887650743,0.24994212,111440.0,111430.0,0.35450641]
[1747887651060,0.24994212,111440.0,111430.0,0.44402792]
[1747887653620,0.24994212,111440.0,111430.0,0.00115276]
[1747887654252,0.18844212,111440.0,111430.0,0.00115276]
[1747887654472,0.20638866,111440.0,111430.0,0.44942463]
[1747887654678,0.20638794,111440.0,111430.0,0.79839855]
[1747887654886,0.20638794,111440.0,111430.0,1.06759855]
[1747887655095,0.19741507,111440.0,111430.0,1.17062208]
[1747887655299,0.18844204,111440.0,111430.0,1.16164816]
[1747887655683,0.17946877,111440.0,111430.0,0.89264194]
[1747887655893,0.17946877,111440.0,111430.0,0.63282902]
[1747887656295,0.21146877,111440.0,111430.0,0.28385478]
[1747887657118,0.17946877,111440.0,111430.0,0.28385478]
[1747887657781,0.17946877,111440.0,111430.0,0.36313896]
[1747887657931,0.17946877,111440.0,111430.0,0.28385478]
[1747887658993,0.17946877,111440.0,111430.0,0.5436677]
[1747887659222,0.24356877,111440.0,111430.0,0.01465478]
[1747887659399,0.24356877,111440.0,111430.0,0.28381478]
[1747887659955,0.24356877,111440.0,111430.0,0.01465478]
[1747887660403,0.24356877,111440.0,111430.0,0.00115276]
[1747887661396,0.33311433,111440.0,111430.0,0.00115276]
[1747887661671,0.34149303,111440.0,111430.0,0.00115276]
[1747887662508,0.6258468,111440.0,111430.0,0.00115276]
[1747887662914,0.9658468,111440.0,111430.0,0.00115276]
[1747887663137,1.06536831,111440.0,111430.0,0.00115276]
[1747887663411,0.25816823,111410.0,111400.0,0.01066956]
[1747887663615,0.63145464,111410.0,111400.0,0.01117898]
[1747887664149,1.23126756,111410.0,111400.0,0.01117898]
[1747887664366,1.24126756,111410.0,111400.0,0.00050942]
[1747887664985,1.34178907,111410.0,111400.0,0.00050942]
[1747887665510,0.61274454,111390.0,111380.0,0.03146893]
[1747887665717,1.3884101,111390.0,111380.0,0.03162187]
[1747887667229,1.64822302,111390.0,111380.0,0.03162187]
[1747887667825,1.3894101,111390.0,111380.0,0.03162187]
[1747887668030,1.3904101,111390.0,111380.0,0.03162187]
[1747887668293,1.3904101,111390.0,111380.0,0.00015294]
[1747887668453,1.65022302,111390.0,111380.0,0.00015294]
[1747887669338,0.01796242,111340.0,111330.0,0.07179717]
[1747887669543,0.19759238,111340.0,111330.0,0.07179717]
[1747887670377,0.22959238,111340.0,111330.0,0.07179717]
[1747887670586,0.17964609,111330.0,111310.0,0.56056185]
[1747887670799,0.19762804,111320.0,111310.0,0.39927832]
[1747887671013,0.19762804,111320.0,111310.0,0.65909124]
[1747887671259,0.18864518,111320.0,111310.0,0.65010741]
[1747887671428,0.18864518,111320.0,111310.0,0.66720084]
[1747887671793,0.18864518,111320.0,111310.0,0.75672235]
[1747887672208,0.18864518,111320.0,111310.0,0.65821693]
[1747887672611,0.17966223,111320.0,111310.0,0.0531336]
[1747887673322,0.17966223,111320.0,111310.0,0.02166467]
[1747887673751,0.18866212,111310.0,111300.0,1.26583764]
[1747887673962,0.18866212,111310.0,111300.0,0.51906707]
[1747887674168,0.19766314,111300.0,111290.0,0.65530685]
[1747887674376,0.20664738,111300.0,111290.0,0.75383762]
[1747887674570,0.21563186,111300.0,111290.0,0.76282266]
[1747887674717,0.20664787,111300.0,111290.0,0.99913294]
[1747887674930,0.18867899,111300.0,111290.0,0.99018741]
[1747887675135,0.18867899,111300.0,111290.0,1.1968541]
[1747887675340,0.18867899,111300.0,111290.0,1.19736401]
[1747887675546,0.18867899,111300.0,111290.0,1.19736433]
[1747887675750,0.17969451,111300.0,111290.0,0.9190188]
[1747887676116,0.17967837,111310.0,111300.0,0.34]
[1747887676360,0.24207837,111310.0,111300.0,0.34]
[1747887676787,0.24207837,111310.0,111290.0,0.30133884]
[1747887676788,0.17969451,111300.0,111290.0,0.03197884]
[1747887676991,0.17969451,111300.0,111290.0,0.04417314]
[1747887676992,0.24349451,111300.0,111290.0,0.04417314]
[1747887677209,0.24349451,111300.0,111290.0,0.03597884]
[1747887677482,0.24349451,111300.0,111290.0,0.03897884]
[1747887677696,0.24349451,111300.0,111290.0,0.03497884]
[1747887677916,0.24349451,111300.0,111290.0,0.03197884]
[1747887678122,0.24349451,111300.0,111290.0,0.00050991]
[1747887678123,0.24449451,111300.0,111290.0,0.00050991]
[1747887678297,0.51389451,111300.0,111290.0,0.00050991]
[1747887679576,1.02064007,111300.0,111290.0,0.00050991]
[1747887680221,1.03618092,111300.0,111290.0,0.00050991]
[1747887680424,1.29599384,111300.0,111290.0,0.00050991]
[1747887680823,0.20672201,111260.0,111250.0,0.36325271]
[1747887681231,0.20672201,111260.0,111250.0,0.20302799]
[1747887681832,0.19773462,111260.0,111250.0,0.35426411]
[1747887682066,0.19773462,111260.0,111250.0,0.37239401]
[1747887682270,0.02696313,111260.0,111250.0,0.84727254]
[1747887682471,0.03595108,111260.0,111250.0,0.83828435]
[1747887682674,0.20672257,111260.0,111250.0,0.83828435]
[1747887683259,0.17975912,111260.0,111250.0,0.35343764]
[1747887683467,0.21035912,111260.0,111250.0,0.35743764]
[1747887684264,0.21035912,111260.0,111250.0,0.08096059]
[1747887684465,0.21035912,111260.0,111250.0,0.01743764]
[1747887686169,0.01797534,111260.0,111250.0,0.47500312]
[1747887686372,0.20672176,111260.0,111250.0,0.4660146]
[1747887686577,0.17973948,111290.0,111260.0,0.52874651]
[1747887686782,0.26924918,111300.0,111280.0,0.79751176]
[1747887687070,0.18869619,111290.0,111280.0,0.34]
[1747887687951,0.18869619,111290.0,111280.0,0.77953973]
[1747887688150,0.18869619,111290.0,111280.0,0.60879926]
[1747887688738,0.18869619,111290.0,111280.0,0.34]
[1747887688949,0.18869619,111290.0,111280.0,0.59981292]
[1747887689153,0.00898504,111290.0,111280.0,0.80649777]
[1747887689369,0.00898359,111310.0,111300.0,0.53766339]
[1747887689545,0.21561297,111310.0,111300.0,0.79747631]
[1747887689875,0.20662962,111310.0,111300.0,1.06699679]
[1747887690079,0.02695125,111310.0,111300.0,1.08496535]
[1747887690262,0.20662962,111310.0,111300.0,1.06699679]
[1747887690442,0.19964603,111310.0,111300.0,1.06699679]
[1747887690642,0.2001546,111310.0,111300.0,1.07598119]
[1747887690853,0.2001546,111310.0,111300.0,1.06699679]
[1747887691058,0.2001546,111310.0,111300.0,1.08074837]
[1747887691471,0.2001546,111310.0,111300.0,1.06699679]
[1747887691472,0.1981546,111310.0,111300.0,1.06699679]
[1747887692017,0.01847583,111310.0,111300.0,1.25996615]
[1747887692216,0.01847583,111310.0,111300.0,1.17451091]
[1747887692446,0.03644269,111310.0,111300.0,1.17451107]
[1747887692653,0.03644309,111310.0,111300.0,0.42954556]
[1747887692854,0.03644309,111310.0,111300.0,0.60952]
[1747887692855,0.19815452,111310.0,111300.0,0.60952]
[1747887693031,0.19815452,111310.0,111300.0,0.34]
[1747887693578,0.19815452,111310.0,111300.0,0.59981292]
[1747887696566,0.19815452,111310.0,111300.0,0.79747663]
[1747887696776,0.19815452,111310.0,111300.0,0.59981292]
[1747887696982,0.19815452,111310.0,111300.0,0.77950743]
[1747887697185,0.18917085,111310.0,111300.0,0.61778228]
[1747887697333,0.18917085,111310.0,111300.0,0.60879764]
[1747887697529,0.18018694,111310.0,111300.0,0.61778228]
[1747887697793,0.18018694,111310.0,111300.0,0.60879764]
[1747887698011,0.18018694,111310.0,111300.0,0.61778228]
[1747887698368,0.18018694,111310.0,111300.0,0.79747679]
[1747887698763,0.18018694,111310.0,111300.0,0.60879764]
[1747887699200,0.18018694,111310.0,111300.0,0.79747679]
[1747887700018,0.00050857,111310.0,111300.0,0.90499091]
[1747887700223,0.00050857,111310.0,111300.0,1.53591091]
[1747887700428,0.00050857,111310.0,111300.0,1.3649973]
[1747887700629,0.00050857,111310.0,111300.0,1.37566686]